{"text_format":"1","workbook":"xlsx","n_sheets":3,"sheets":["Presentación","Parámetros","Nuevo cálculo"],"not_rendered":{"charts":0,"images":1,"macros":0,"external_links":0,"defined_names":1,"comments":2,"pivot_tables":0},"unopened":[],"bounds":{"document_bytes":16777216,"sheet_cells":100000,"rows_first":2000,"rows_last":500,"rows_between":2000,"halvings":0,"cell_chars":16384,"cell_head_chars":4096},"cells_cut":0,"cells_raw":0,"read":"whole","date_system":"1900"}

{"sheet":"Presentación","index":0,"n_rows":12,"n_cols":3,"rows_kept":12,"cut":false,"hidden":false,"merged":[[3,2,3,4],[6,2,7,7],[10,2,10,4],[11,2,11,4],[11,6,11,8]]}
[]
[]
[]
[]
[]
[]
[]
[]
[]
[]
[]
[null,"Autor:","William Sivipaucar Romani"]

{"sheet":"Parámetros","index":1,"n_rows":16,"n_cols":8,"rows_kept":16,"cut":false,"hidden":false,"merged":[[13,7,14,7],[7,2,7,6],[5,3,5,5],[1,1,3,10],[9,7,10,7],[11,7,12,7]]}
[]
[null,"NUEVOS PARAMETROS - RENTA DE CUARTA CATEGORÍA 2015"]
[]
[]
[]
[null,null,"Valor de la UIT",3850]
[]
[null,null,"RENTA IMPONIBLE DE TRABAJO",null,null,null,null,"TASA"]
[null,null,"Hasta",5,"UIT","ó",{"$f":"+D9*$D$6","v":19250},0.08]
[null,null,"Por el Exceso de",5,"UIT","ó",19250,0.14000000000000001]
[null,null,"y hasta",20,"UIT","ó",77000]
[null,null,"Por el Exceso de",20,"UIT","ó",77000,0.17]
[null,null,"y hasta",35,"UIT","ó",134750]
[null,null,"Por el Exceso de",35,"UIT","ó",134750,0.2]
[null,null,"y hasta",45,"UIT","ó",173250]
[null,null,"Por el Exceso de",45,"UIT","ó",173250,0.3]

{"sheet":"Nuevo cálculo","index":2,"n_rows":25,"n_cols":6,"rows_kept":25,"cut":false,"hidden":false,"merged":[[0,1,0,6]]}
[null,"CALCULO DEL IMPUESTO A LA RENTA DE CUARTA CATEGORIA 2015 (NUEVO)"]
[null,null,"Descripción",null,null,"S/."]
[null,null,"Renta Bruta obtenida por el ejercicio individual (Profesión, arte, ciencia u oficio)",null,"❶",299000]
[null,null,{"$f":"\"Deducción (20% del Renta Bruta obtenida - Máximo S/ \"&TEXT(Parámetros!D6*24,\"#,000.00\")","v":"Deducción (20% del Renta Bruta obtenida - Máximo S/ 92,400.00"},null,null,{"$f":"IF(20%*F3>Parámetros!D6*24,Parámetros!D6*24,20%*F3)","v":59800}]
[null,null,"Renta Neta obtenida por el ejercicio individual (Profesión, arte, ciencia u oficio) ",null,null,{"$f":"+F3-F4","v":239200}]
[null,null,"Otras Rentas de Cuarta Categoría",null,"❷"]
[null,null,"Total Rentas de Cuarta Categoría",null,null,{"$f":"+F5+F6","v":239200}]
[null,null,"Deducción de 7 UIT (Hasta el límite del total renta de cuarta categoría)",null,null,{"$f":"IF(Parámetros!D6*7>'Nuevo cálculo'!F7,'Nuevo cálculo'!F7,Parámetros!D6*7)","v":26950}]
[null,null,"Total Renta Neta de Cuarta Categoría",null,null,{"$f":"+F7-F8","v":212250}]
[null,null,"Deducción por Impuesto a las Transacciones Financieras - ITF",null,"❸",29]
[null,null,"Deducción por Donaciones",null,"❹",750]
[null,null,"Total Renta Imponible de Trabajo",null,"►",{"$f":"+F9-F10-F11","v":211471}]
[]
[null,null,"Renta imponible de trabajo","Tasa","Tramos"]
[null,null,{"$f":"+Parámetros!C9&\" \" &Parámetros!D9&\" \"&Parámetros!E9&\" \"&Parámetros!F9&\" S/. \"&TEXT(Parámetros!G9,\"#,000.00\")","v":"Hasta 5 UIT ó S/. 19,250.00"},{"$f":"+Parámetros!H9","v":0.08},{"$f":"IF(F12>Parámetros!G9,Parámetros!G9,'Nuevo cálculo'!F12)","v":19250},{"$f":"+D15*E15","v":1540}]
[null,null,{"$f":"+Parámetros!C10&\" \"&Parámetros!D10&\" \"&Parámetros!E10&\" \"&Parámetros!F10&\" S/. \"&TEXT(Parámetros!G10,\"#,000.00\")&\" \" &Parámetros!C11&\" \"&Parámetros!D11&\" \"&Parámetros!E11&\" \"&Parámetros!F11&\" S/. \"&TEXT(Parámetros!G11,\"#,000.00\")","v":"Por el Exceso de 5 UIT ó S/. 19,250.00 y hasta 20 UIT ó S/. 77,000.00"},{"$f":"+Parámetros!H10","v":0.14000000000000001},{"$f":"IF(AND(($F$12)>Parámetros!G10,($F$12)<=Parámetros!G11)=TRUE,$F$12-SUM($E$15:E15),IF($F$12>Parámetros!G11,Parámetros!G11-SUM($E$15:E15),0))","v":57750},{"$f":"+D16*E16","v":8085.0000000000009}]
[null,null,{"$f":"+Parámetros!C12&\" \"&Parámetros!D12&\" \"&Parámetros!E12&\" \"&Parámetros!F12&\" S/. \"&TEXT(Parámetros!G12,\"#,000.00\")&\" \" &Parámetros!C13&\" \"&Parámetros!D13&\" \"&Parámetros!E13&\" \"&Parámetros!F13&\" S/. \"&TEXT(Parámetros!G13,\"#,000.00\")","v":"Por el Exceso de 20 UIT ó S/. 77,000.00 y hasta 35 UIT ó S/. 134,750.00"},{"$f":"+Parámetros!H12","v":0.17},{"$f":"IF(AND(($F$12)>Parámetros!G12,($F$12)<=Parámetros!G13)=TRUE,$F$12-SUM($E$15:E16),IF($F$12>Parámetros!G13,Parámetros!G13-SUM($E$15:E16),0))","v":57750},{"$f":"+D17*E17","v":9817.5}]
[null,null,{"$f":"+Parámetros!C14&\" \"&Parámetros!D14&\" \"&Parámetros!E14&\" \"&Parámetros!F14&\" S/. \"&TEXT(Parámetros!G14,\"#,000.00\")&\" \" &Parámetros!C15&\" \"&Parámetros!D15&\" \"&Parámetros!E15&\" \"&Parámetros!F15&\" S/. \"&TEXT(Parámetros!G15,\"#,000.00\")","v":"Por el Exceso de 35 UIT ó S/. 134,750.00 y hasta 45 UIT ó S/. 173,250.00"},{"$f":"+Parámetros!H14","v":0.2},{"$f":"IF(AND(($F$12)>Parámetros!G14,($F$12)<=Parámetros!G15)=TRUE,$F$12-SUM($E$15:E17),IF($F$12>Parámetros!G15,Parámetros!G15-SUM($E$15:E17),0))","v":38500},{"$f":"+D18*E18","v":7700}]
[null,null,{"$f":"+Parámetros!C16&\" \"&Parámetros!D16&\" \"&Parámetros!E16&\" \"&Parámetros!F16&\" S/. \"&TEXT(Parámetros!G16,\"#,000.00\")","v":"Por el Exceso de 45 UIT ó S/. 173,250.00"},{"$f":"+Parámetros!H16","v":0.3},{"$f":"IF($F$12>Parámetros!G16,'Nuevo cálculo'!$F$12-SUM('Nuevo cálculo'!E15:E18),0)","v":38221},{"$f":"+D19*E19","v":11466.3}]
[]
[null,null,"Impuesto a la renta",null,null,{"$f":"SUM(F15:F20)","v":38608.800000000003}]
[]
[null,null,"Pagos a cuenta y/o saldo a favor de periodos anteriores",null,"❺",-25600]
[]
[null,null,{"$f":"+IF(F25>=0,\"Impuesto a regularizar\",\"Saldo a favor\")","v":"Impuesto a regularizar"},null,"►",{"$f":"+F21+F23","v":13008.800000000003}]